bitfinex/quotes_ETHUSD_20250115
["timestamp","ask_amount","ask_price","bid_price","bid_amount"]
[1736964180475,4.66601574,3338.2,3338.1,1.5]
[1736964181066,7.9437193,3338.2,3338.1,1.5]
[1736964181368,3.2831193,3338.2,3338.1,1.5]
[1736964183046,4.9437193,3338.2,3338.1,1.5]
[1736964183670,3.2831193,3338.2,3338.1,1.5]
[1736964183865,0.2874993,3338.2,3338.1,1.5]
[1736964184574,0.2874993,3338.2,3338.1,6.20951]
[1736964185393,0.00979574,3338.2,3338.1,3.0452]
[1736964185679,0.00979574,3338.2,3338.1,1.686]
[1736964185839,0.00979574,3338.2,3338.1,1.5]
[1736964185840,3.00541574,3338.2,3338.1,1.5]
[1736964187267,0.00979574,3338.2,3338.1,1.5]
[1736964187466,0.00979574,3338.2,3338.1,3.0452]
[1736964187829,0.28841256,3338.2,3338.1,1.5]
[1736964189174,3.28403256,3338.2,3338.1,1.5]
[1736964189472,6.28403256,3338.2,3338.1,1.5]
[1736964190392,3.28403256,3338.2,3338.1,1.5]
[1736964199299,0.28841256,3338.2,3338.1,1.5]
[1736964199600,0.28841256,3338.2,3338.1,3.2968]
[1736964200374,0.28841256,3338.2,3338.1,3.1282]
[1736964201556,3.28403256,3338.2,3338.1,1.686]
[1736964201761,3.28403256,3338.2,3338.1,1.5]
[1736964201956,6.28403256,3338.2,3338.1,1.5]
[1736964203000,7.88753256,3338.2,3338.1,1.5]
[1736964203887,8.43753256,3338.2,3338.1,1.5]
[1736964205003,0.55,3338.0,3336.4,1.6282]
[1736964205204,2.73590274,3337.0,3336.4,1.8142]
[1736964205400,2.99699,3336.7,3336.4,1.8142]
[1736964205898,2.99707,3336.6,3336.4,1.8142]
[1736964206260,2.99691,3336.8,3336.4,1.8142]
[1736964206704,2.99674,3337.0,3336.4,1.8142]
[1736964207018,2.99664,3337.1,3336.4,1.8142]
[1736964207381,0.27861682,3336.9,3336.4,2.295365]
[1736964207595,0.27861682,3336.9,3336.5,1.6282]
[1736964207794,2.99689,3336.8,3336.5,1.6282]
[1736964207995,2.99699,3336.7,3336.5,1.6282]
[1736964208195,3.27544682,3336.9,3336.5,1.6282]
[1736964208496,2.73590274,3337.2,3336.5,1.6282]
[1736964208497,2.73590274,3337.2,3336.5,1.8142]
[1736964208687,2.99692,3336.8,3336.5,1.8142]
[1736964210069,2.99692,3336.8,3336.5,1.6282]
[1736964210276,2.99692,3336.8,3336.5,1.8142]
[1736964211111,0.55,3337.1,3336.5,1.8142]
[1736964211112,2.99697,3336.7,3336.5,1.8142]
[1736964211671,3.54668,3337.1,3336.5,1.8142]
[1736964212112,2.99692,3336.8,3336.5,1.8142]
[1736964212415,3.27481828,3337.0,3336.5,1.8142]
[1736964212589,0.27809828,3337.0,3336.5,1.8142]
[1736964212787,2.99681,3336.9,3336.5,1.8142]
[1736964214690,2.9969,3336.8,3336.5,1.8142]
[1736964214897,2.9969,3336.8,3336.6,0.186]
[1736964215089,0.55,3337.1,3336.6,0.186]
[1736964215284,2.99697,3336.7,3336.6,0.186]
[1736964217518,2.99683,3336.9,3336.6,0.186]
[1736964218011,2.99683,3336.9,3336.5,0.186]
[1736964219205,0.55,3337.1,3336.5,0.186]
[1736964219376,2.99689,3336.8,3336.5,0.186]
[1736964222014,2.99703,3336.7,3336.5,0.186]
[1736964223373,0.55,3337.1,3336.5,0.186]
[1736964223622,2.99706,3336.6,3336.2,1.623]
[1736964223823,2.99706,3336.6,3336.5,0.186]
[1736964226181,2.99688,3336.8,3336.5,0.186]
[1736964227933,1.6384,3337.4,3336.6,1.623]
[1736964228239,2.99666,3337.1,3336.6,1.623]
[1736964230507,0.27827165,3337.0,3336.6,1.623]
[1736964231018,0.27827165,3337.0,3336.6,1.8039]
[1736964231233,0.27827165,3337.0,3336.8,2.99685]
[1736964231464,0.27827165,3337.0,3336.9,1.5797]
[1736964231787,2.99616,3337.6,3336.9,1.5797]
[1736964232039,2.99599,3337.8,3336.9,1.5797]
[1736964232350,2.99648,3337.3,3337.0,0.186]
[1736964232635,2.99654,3337.2,3337.0,0.186]
[1736964232816,3.27511353,3337.2,3337.0,0.186]
[1736964233023,3.27511353,3337.2,3336.9,1.5797]
[1736964233186,0.27857353,3337.2,3336.9,0.186]
[1736964233441,0.55,3336.9,3336.4,0.186]
[1736964233620,2.99722,3336.5,3336.4,0.186]
[1736964234923,2.9974,3336.3,3336.0,1.5797]
[1736964235110,2.99741,3336.3,3336.1,0.186]
[1736964235444,2.99741,3336.3,3336.0,1.7657]
[1736964237687,2.99743,3336.2,3336.0,0.186]
[1736964238089,3.0,3336.7,3336.0,0.186]
[1736964238317,2.99704,3336.7,3336.0,0.186]
[1736964238521,2.99743,3336.2,3336.0,0.186]
[1736964238703,2.99722,3336.5,3336.0,0.186]
[1736964238909,2.99722,3336.5,3336.1,1.5797]
[1736964239607,0.27846925,3336.4,3336.1,1.5797]
[1736964240848,2.99722,3336.5,3336.1,1.5797]
[1736964242229,2.99683,3336.9,3336.1,1.5797]
[1736964242435,2.99726,3336.4,3336.1,1.5797]
[1736964244072,3.54672,3337.0,3336.1,1.5797]
[1736964244225,2.99697,3336.7,3336.1,1.5797]
[1736964245276,0.27839554,3336.6,3336.1,1.5797]
[1736964246533,2.99697,3336.7,3336.1,1.5797]
[1736964247560,2.9967,3337.0,3336.2,1.533]
[1736964249166,0.27854229,3336.9,3336.2,1.533]
[1736964249466,2.99707,3336.6,3336.2,1.533]
[1736964249865,2.99693,3336.8,3336.2,1.533]
[1736964250054,0.27854229,3336.9,3336.3,0.185]
[1736964250055,2.99698,3336.7,3336.3,0.185]
[1736964250685,3.27552229,3336.7,3336.3,0.185]
[1736964250836,2.9971,3336.6,3336.3,0.185]
[1736964251630,2.9971,3336.6,3336.2,1.533]
[1736964251830,2.9971,3336.6,3336.3,35.185]
[1736964252089,0.27854229,3336.5,3336.3,35.185]
[1736964253361,2.99724,3336.4,3336.3,0.185]
[1736964253752,2.99724,3336.4,3335.9,1.533]
[1736964253950,2.99724,3336.4,3336.0,0.185]
[1736964254553,3.27587229,3336.3,3336.0,0.185]
[1736964255602,2.99733,3336.3,3336.0,0.185]
[1736964255750,2.99717,3336.5,3336.0,0.185]
[1736964255948,2.9971,3336.6,3336.0,0.185]
[1736964256995,0.27867762,3336.5,3336.0,0.185]
[1736964257497,3.0,3336.1,3335.1,1.533]
[1736964257651,2.99782,3335.8,3335.2,0.185]
[1736964257855,2.99799,3335.6,3335.3,35.0]
[1736964258158,2.99814,3335.4,3335.3,35.0]
[1736964258498,2.998,3335.6,3335.3,35.0]
[1736964258853,4.28300274,3335.9,3335.2,0.185]
[1736964259212,4.28300274,3335.3,3334.9,0.185]
[1736964259358,4.28300274,3335.3,3334.6,35.0]
[1736964259549,2.73590274,3335.3,3334.7,0.185]
[1736964259783,5.73413274,3335.3,3334.7,0.185]
[1736964259948,2.73590274,3335.3,3334.7,0.185]
[1736964260163,2.73590274,3335.3,3334.8,0.185]
[1736964260369,2.73590274,3335.3,3334.9,35.0]
[1736964260722,2.99886,3334.6,3334.5,1.533]
[1736964260849,2.99886,3334.6,3334.5,0.185]
[1736964261055,2.99913,3334.3,3334.2,1.5501]
[1736964261280,2.73590274,3334.4,3334.2,35.0]
[1736964262269,2.99923,3334.2,3334.0,0.186]
[1736964262466,2.73590274,3334.4,3334.0,0.186]
[1736964262694,2.99931,3334.1,3334.0,0.186]
[1736964262898,2.9994,3334.0,3333.9,35.0]
[1736964263397,2.99967,3333.7,3333.3,1.5501]
[1736964263597,2.99967,3333.7,3333.4,0.186]
[1736964263801,2.99967,3333.7,3333.4,35.056]
[1736964263983,2.99977,3333.6,3333.4,35.0]
[1736964264155,5.73575274,3333.5,3333.4,35.0]
[1736964264360,3.00001,3333.4,3333.1,0.186]
[1736964264858,3.00001,3333.4,3333.2,35.0]
[1736964265357,2.73590274,3333.5,3333.1,0.186]
[1736964265556,3.0,3334.2,3333.1,0.186]
[1736964265557,5.73553274,3333.8,3333.1,0.35961]
[1736964265762,5.73553274,3333.8,3333.2,35.0]
[1736964266160,2.73590274,3333.8,3333.2,35.0]
[1736964266358,2.99971,3333.7,3333.2,35.0]
[1736964267280,2.73590274,3333.8,3333.2,35.0]
[1736964267732,5.73550274,3333.8,3333.2,35.0]
[1736964268116,2.9996,3333.8,3333.3,1.5501]
[1736964268704,2.9996,3333.8,3333.4,35.0]
[1736964269720,2.99965,3333.8,3333.4,35.0]
[1736964270506,2.99967,3333.7,3333.4,35.0]
[1736964273433,2.99951,3333.9,3333.4,35.0]
[1736964274022,2.73590274,3334.1,3333.4,35.0]
[1736964274395,2.99959,3333.8,3333.4,35.0]
[1736964275794,2.99943,3334.0,3333.4,35.0]
[1736964276107,2.99957,3333.9,3333.4,35.0]
[1736964276933,2.73590274,3334.1,3333.4,35.0]
[1736964277121,2.99959,3333.8,3333.4,35.0]
[1736964277318,2.99976,3333.6,3333.4,35.0]
[1736964279098,2.73590274,3334.1,3333.4,35.0]
[1736964279099,2.99959,3333.8,3333.4,35.0]
[1736964280149,2.99942,3334.0,3333.4,35.0]
[1736964280307,3.0,3334.1,3333.5,1.615]
[1736964280514,2.99932,3334.1,3333.5,1.615]
[1736964280861,2.9994,3334.0,3333.5,1.615]
[1736964281141,2.99925,3334.2,3333.5,1.615]
[1736964281343,5.73462274,3334.8,3333.6,1.615]
[1736964281550,2.99894,3334.6,3333.8,1.615]
[1736964282043,2.99897,3334.5,3333.8,1.615]
[1736964282232,2.99906,3334.4,3333.8,1.615]
[1736964282544,2.99888,3334.6,3333.9,0.18]
[1736964284054,2.99888,3334.6,3334.0,35.0]
[1736964284645,5.99883,3334.7,3334.1,1.615]
[1736964284792,2.99883,3334.7,3334.1,1.615]
[1736964284997,0.60078001,3334.8,3334.1,1.615]
[1736964285197,2.99896,3334.5,3334.1,1.615]
[1736964285755,2.9988,3334.7,3334.1,1.615]
[1736964286853,3.33668275,3334.8,3334.1,1.615]
[1736964287047,2.99889,3334.6,3334.1,1.615]
[1736964287200,3.33668275,3334.8,3334.1,1.615]
[1736964287401,3.59948001,3334.8,3334.1,1.615]
[1736964287601,5.99853,3335.0,3334.1,1.615]
[1736964287602,2.99852,3335.0,3334.2,1.615]
[1736964287859,1.5779,3335.5,3334.4,1.615]
[1736964288061,2.73590274,3335.8,3334.6,1.615]
[1736964288062,2.99801,3335.6,3334.6,1.615]
[1736964288216,0.27788748,3334.9,3334.7,0.185]
[1736964288402,0.27788748,3334.9,3334.8,4.61368]
[1736964288611,0.27788748,3334.9,3334.8,43.093548]
[1736964289308,2.99763,3336.0,3334.8,38.479868]
[1736964289653,2.99752,3336.1,3335.0,1.5271]
[1736964289956,2.99752,3336.1,3335.2,1.5271]
[1736964290299,2.99724,3336.4,3335.4,1.5271]
[1736964290555,2.99727,3336.4,3335.5,1.5271]
[1736964290929,0.27783392,3336.3,3335.5,1.5271]
[1736964291100,0.27783392,3336.3,3335.6,2.99788]
[1736964291310,0.27783392,3336.3,3335.7,1.7121]
[1736964291510,0.27783392,3336.3,3335.7,3.18283]
[1736964291825,0.27783392,3336.3,3335.9,1.5271]
[1736964292205,2.99692,3336.8,3335.9,1.5271]
[1736964293402,3.0,3337.0,3335.9,1.5271]
[1736964293705,2.99686,3336.9,3336.0,35.0]
[1736964293959,2.99688,3336.8,3336.0,35.0]
[1736964294655,3.0,3337.0,3336.1,1.5271]
[1736964294819,3.59835357,3337.1,3336.1,4.52459]
[1736964295030,3.59835357,3337.1,3336.2,1.5271]
[1736964295226,2.99663,3337.1,3336.3,35.0]
[1736964295424,3.0,3337.3,3336.3,35.0]
[1736964295754,3.59819243,3337.2,3336.4,1.5271]
[1736964295970,0.60167243,3337.2,3336.4,1.5271]
[1736964296257,0.60167243,3337.2,3336.6,1.5271]
[1736964296408,0.60167243,3337.2,3336.7,0.185]
[1736964296607,2.99635,3337.4,3336.7,0.185]
[1736964297505,5.9962,3337.6,3336.7,0.185]
[1736964297808,5.9962,3337.6,3336.8,1.5271]
[1736964298318,5.9962,3337.6,3336.8,4.50333477]
[1736964298835,2.9962,3337.6,3336.8,4.50333477]
[1736964299151,2.99606,3337.8,3336.8,4.50333477]
[1736964299454,2.99606,3337.8,3336.9,1.5817]
[1736964299842,2.99606,3337.8,3337.0,35.0]
[1736964300042,2.73590274,3338.0,3337.1,0.185]
[1736964300246,0.0024758,3338.2,3337.2,1.5817]
[1736964300446,0.0024758,3338.2,3337.3,2.99642]
[1736964300647,0.0024758,3338.2,3337.4,1.5817]
[1736964300844,0.0024758,3338.2,3337.5,35.0]
[1736964303155,0.0024758,3338.2,3337.6,3.02795975]
[1736964303399,0.0024758,3338.2,3337.7,4.57777]
[1736964303702,0.0024758,3338.2,3337.8,1.5817]
[1736964303851,0.0024758,3338.2,3337.9,1.5817]
[1736964304683,0.0024758,3338.2,3338.0,2.9958]
[1736964304896,0.0024758,3338.2,3338.1,5.13348]
[1736964305215,0.0024758,3338.2,3338.1,8.12919]
[1736964306483,0.0024758,3338.2,3338.1,5.13348]
[1736964307413,0.0024758,3338.2,3338.1,8.12919]
[1736964307912,0.0024758,3338.2,3338.1,5.13348]
[1736964308869,0.0024758,3338.2,3338.1,8.12919]
[1736964310328,0.0024758,3338.2,3338.1,5.13348]
[1736964310471,0.0024758,3338.2,3338.1,4.8339]
[1736964310672,0.0024758,3338.2,3338.1,9.82961]
[1736964313871,0.0024758,3338.2,3338.1,4.8339]
[1736964314276,0.0024758,3338.2,3338.1,7.82961]
[1736964315221,0.0024758,3338.2,3338.1,4.8339]
[1736964316434,0.0024758,3338.2,3338.1,5.616868]
[1736964316636,0.0024758,3338.2,3338.1,8.612578]
[1736964317524,0.0024758,3338.2,3338.1,5.616868]
[1736964318219,0.0024758,3338.2,3338.1,8.612578]
[1736964318421,0.0024758,3338.2,3338.1,13.612578]
[1736964318680,0.005,3338.4,3338.3,2.99553]
[1736964318835,1.6262,3340.0,3339.1,2.99478]
[1736964319022,1.6262,3340.0,3339.3,1.6519]
[1736964319227,2.73590274,3340.4,3339.4,5.99054]
[1736964319228,2.99379,3340.3,3339.4,5.99054]
[1736964319473,2.73590274,3340.4,3339.4,2.99454]
[1736964319636,2.73590274,3340.4,3339.3,3.6519]
[1736964319637,2.9939,3340.2,3339.3,3.6519]
[1736964319865,2.9938,3340.3,3339.3,3.6519]
[1736964320048,2.99391,3340.2,3339.3,3.6519]
[1736964320335,2.99396,3340.1,3339.3,3.6519]
[1736964320757,2.99396,3340.1,3339.3,4.335064]
[1736964321131,2.73590274,3340.4,3339.3,4.335064]
[1736964321356,2.99402,3340.0,3339.3,2.335064]
[1736964321670,2.73590274,3339.8,3339.0,1.5531]
[1736964321876,1.5226,3339.4,3339.1,0.185]
[1736964322080,1.5226,3339.4,3339.2,0.185]
[1736964322233,4.51716,3339.4,3339.3,0.185]
[1736964322568,2.73590274,3339.5,3339.3,0.185]
[1736964322926,2.99454,3339.4,3339.3,0.185]
[1736964323126,2.73590274,3339.5,3339.3,0.185]
[1736964323376,1.5226,3339.7,3338.8,2.99508]
[1736964323576,5.73012274,3339.8,3339.4,0.185]
[1736964323735,5.73012274,3339.8,3339.5,0.185]
[1736964325331,0.27746218,3339.7,3339.5,0.185]
[1736964325533,3.27177218,3339.7,3339.5,0.185]
[1736964325754,2.99437,3339.6,3339.5,0.185]
[1736964326667,3.27183218,3339.6,3339.5,0.735]
[1736964326979,0.27746218,3339.6,3339.5,0.735]
[1736964327349,0.27746218,3339.6,3339.5,2.2881]
[1736964327535,0.27746218,3339.6,3339.5,2.51691]
[1736964328565,0.27746218,3339.6,3339.5,2.2881]
[1736964330651,0.27746218,3339.6,3339.5,8.27856]
[1736964330851,0.27746218,3339.6,3339.5,11.27856]
[1736964331264,2.99341,3340.7,3339.6,3.55]
[1736964331582,2.73590274,3340.9,3340.0,3.55]
[1736964331583,2.99328,3340.9,3340.0,3.55]
[1736964331788,2.99328,3340.9,3340.0,4.36270961]
[1736964332187,4.51566,3341.1,3340.3,0.55]
[1736964332350,0.27832658,3340.8,3340.5,0.55]
[1736964332539,0.27832658,3340.8,3340.7,0.55]
[1736964332940,0.27832658,3340.8,3340.7,0.61836137]
[1736964333441,0.27832658,3340.8,3340.7,2.17146137]
[1736964333641,2.99287,3341.3,3340.7,2.17146137]
[1736964333855,2.99294,3341.2,3340.7,2.17146137]
[1736964334081,1.5226,3341.4,3340.7,0.61836137]
[1736964334265,2.99316,3341.0,3340.7,0.61836137]
[1736964338244,2.99318,3341.0,3340.7,0.61836137]
[1736964338594,2.9932,3340.9,3340.8,0.735]
[1736964339109,2.99305,3341.1,3340.8,0.185]
[1736964339307,2.9933,3340.8,3340.0,1.5102]
[1736964339471,2.99338,3340.7,3340.6,0.185]
[1736964339679,2.99338,3340.7,3340.6,0.252487]
[1736964339910,2.99338,3340.7,3340.6,0.802487]
[1736964340409,2.99338,3340.7,3340.6,0.617487]
[1736964343006,2.98621688,3340.7,3340.6,0.617487]
[1736964343864,2.99324,3340.9,3340.6,0.067487]
[1736964344063,2.99324,3340.9,3340.5,0.185]
[1736964344363,2.99324,3340.9,3340.6,0.06526824]
[1736964344819,2.99324,3340.9,3340.7,0.185]
[1736964344981,1.6344,3341.1,3340.7,0.185]
[1736964344982,2.99329,3340.8,3340.7,0.185]
[1736964346270,2.99329,3340.8,3340.1,0.55]
[1736964346499,2.99329,3340.8,3340.3,0.55]
[1736964350552,2.99338,3340.7,3340.3,0.55]
[1736964350858,2.9935,3340.6,3340.3,0.55]
[1736964351833,1.6344,3341.1,3340.1,0.55]
[1736964352041,2.99347,3340.6,3340.5,0.55]
[1736964353546,2.99311,3341.0,3340.1,0.55]
[1736964353754,2.99311,3341.0,3340.5,0.55]
[1736964353952,2.99347,3340.6,3340.5,0.55]
[1736964354254,1.6288,3340.5,3339.9,0.55]
[1736964354412,1.6288,3340.5,3339.7,1.5444]
[1736964354607,2.99392,3340.1,3340.0,0.24830346]
[1736964354817,2.99401,3340.0,3339.9,0.185]
[1736964355725,2.9941,3339.9,3339.8,0.185]
[1736964355937,1.6288,3340.2,3339.0,1.5444]
[1736964356106,1.6288,3340.2,3339.8,0.06347665]
[1736964356464,1.6288,3340.2,3338.2,2.0]
[1736964356465,2.99437,3339.6,3339.3,0.185]
[1736964356606,1.6288,3339.3,3339.1,0.185]
[1736964356809,2.99479,3339.2,3339.1,0.185]
[1736964358454,2.99479,3339.2,3338.5,0.55]
[1736964358655,2.99482,3339.1,3339.0,0.185]
[1736964359016,2.99482,3339.1,3339.0,0.735]
[1736964360639,2.99482,3339.1,3339.0,0.55]
[1736964361683,2.99459,3339.4,3338.5,0.185]
[1736964361684,1.6288,3339.0,3338.5,0.185]
[1736964361849,2.99506,3338.9,3338.7,0.55]
[1736964362343,2.99506,3338.9,3338.1,1.5444]
[1736964362549,2.99506,3338.9,3338.8,0.61231587]
[1736964363249,2.99484,3339.1,3338.3,0.55]
[1736964363462,2.99491,3339.0,3338.5,0.55]
[1736964363865,2.99491,3339.0,3338.7,0.55]
[1736964364267,2.99491,3339.0,3338.9,0.55]
[1736964364598,2.99491,3339.0,3338.7,0.55]
[1736964364769,1.6288,3339.3,3338.7,0.55]
[1736964364964,2.99495,3339.0,3338.8,0.0623687]
[1736964365168,2.99495,3339.0,3338.7,0.55]
[1736964365370,2.99495,3339.0,3338.9,0.06233453]
[1736964365598,2.99495,3339.0,3338.7,0.55]
[1736964365798,2.99495,3339.0,3338.9,0.06233453]
[1736964366004,2.99508,3338.8,3338.7,0.55]
[1736964366613,2.99517,3338.7,3337.4,1.537]
[1736964366751,2.99598,3337.8,3337.5,0.185]
[1736964366952,2.99598,3337.8,3337.5,0.24638587]
[1736964367583,1.5722,3338.0,3337.5,0.24638587]
[1736964367784,2.99609,3337.7,3337.5,0.24638587]
[1736964367953,2.99616,3337.6,3337.5,0.06138587]
[1736964368155,2.99633,3337.5,3337.3,0.12527789]
[1736964368495,2.99598,3337.8,3337.4,0.55]
[1736964368699,7.30394274,3338.0,3337.3,0.12527789]
[1736964368700,2.99634,3337.4,3337.3,0.12527789]
[1736964368851,2.99634,3337.4,3336.8,1.537]
[1736964368852,2.99616,3337.6,3337.5,0.05723487]
[1736964369051,2.99641,3337.4,3337.1,0.185]
[1736964369495,2.99642,3337.4,3337.2,0.05733746]
[1736964369666,2.99643,3337.3,3337.2,0.05733746]
[1736964369869,2.99584,3338.0,3337.1,0.185]
[1736964369870,2.99602,3337.8,3337.1,0.185]
[1736964370049,2.99589,3337.9,3337.2,0.55]
[1736964370262,2.99589,3337.9,3337.4,0.55]
[1736964370571,1.5722,3338.0,3337.4,0.55]
[1736964370572,2.99599,3337.8,3337.6,0.55]
[1736964370776,1.5722,3338.0,3337.6,0.55]
[1736964370777,2.99607,3337.7,3337.6,0.55]
[1736964371084,2.99617,3337.6,3337.4,0.55]
[1736964371483,2.99617,3337.6,3337.5,0.60723487]
[1736964371873,2.99617,3337.6,3337.5,35.60723487]
[1736964372912,2.99601,3337.8,3337.6,0.55]
[1736964373359,2.99601,3337.8,3337.7,0.60716649]
[1736964375705,2.99601,3337.8,3337.7,0.05716649]
[1736964375870,2.99601,3337.8,3336.9,1.537]
[1736964376084,2.99625,3337.5,3337.2,0.60733746]
[1736964376605,2.99625,3337.5,3337.4,0.55]
[1736964376777,2.99625,3337.5,3337.3,0.60793746]
[1736964376977,2.99625,3337.5,3337.3,0.55]
[1736964377176,2.99625,3337.5,3337.4,35.55]
[1736964377375,2.99625,3337.5,3337.4,35.60790327]
[1736964377957,7.30391274,3338.0,3337.5,0.55]
[1736964377958,2.99612,3337.7,3337.5,0.55]
[1736964378278,2.99616,3337.6,3337.5,0.55]
[1736964381592,2.99616,3337.6,3337.2,0.55]
[1736964381927,1.5722,3338.0,3337.4,0.55]
[1736964382083,2.99553,3338.3,3337.6,0.55]
[1736964382285,2.99589,3337.9,3337.8,0.55]
[1736964383499,3.0,3338.3,3337.8,0.55]
[1736964383703,2.99571,3338.1,3338.0,0.55]
[1736964384317,2.99556,3338.3,3338.0,0.55]
[1736964385400,2.99571,3338.1,3338.0,0.55]
[1736964386752,2.99553,3338.3,3338.0,0.55]
[1736964386886,2.99553,3338.3,3338.0,0.60826503]
[1736964387091,2.99553,3338.3,3338.2,0.55]
[1736964387305,2.99553,3338.3,3338.2,0.60819667]
[1736964388131,2.99553,3338.3,3338.2,35.60819667]
[1736964388333,1.6334,3338.9,3338.2,0.60819667]
[1736964388541,2.99525,3338.7,3338.4,0.55]
[1736964388726,2.99525,3338.7,3338.4,0.79315037]
[1736964389031,2.99499,3339.0,3338.8,0.55]
[1736964389032,2.99495,3339.0,3338.8,0.55]
[1736964389216,5.99495,3339.0,3338.9,0.735]
[1736964389418,5.99495,3339.0,3338.9,0.79246731]
[1736964389730,5.99495,3339.0,3338.9,35.735]
[1736964389937,5.99495,3339.0,3338.9,35.79246731]
[1736964391195,5.99495,3339.0,3338.9,0.79246731]
[1736964391561,5.99495,3339.0,3338.9,0.735]
[1736964392058,7.62835,3339.0,3338.9,0.735]
[1736964394651,4.6334,3339.0,3338.4,1.5785]
[1736964394853,2.99535,3338.5,3338.4,1.5785]
[1736964395056,2.99535,3338.5,3338.4,2.3135]
[1736964395461,2.99535,3338.5,3338.4,2.37099884]
[1736964395961,2.99508,3338.9,3338.5,0.55]
[1736964396161,2.99508,3338.9,3338.5,0.78709988]
[1736964396333,2.99508,3338.9,3338.7,0.55]
[1736964396749,2.99508,3338.9,3338.8,35.60740539]
[1736964400308,2.99508,3338.9,3338.8,0.60740539]
[1736964400822,2.99508,3338.9,3338.8,35.60740539]
[1736964403698,2.99508,3338.9,3338.8,0.60740539]
[1736964403989,2.99485,3339.1,3338.9,0.55]
[1736964404323,2.99472,3339.2,3339.1,0.55]
[1736964404539,2.99472,3339.2,3339.1,0.60712993]
[1736964405397,2.995,3338.9,3338.5,35.55]
[1736964405676,2.995,3338.9,3338.6,0.05730076]
[1736964406440,2.995,3338.9,3338.8,0.55]
[1736964406876,2.995,3338.9,3338.8,0.60723242]
[1736964409760,2.995,3338.9,3338.8,35.55]
[1736964410280,2.995,3338.9,3338.8,35.60524822]
[1736964412790,7.5475,3338.9,3338.8,0.05524822]
[1736964413004,7.5475,3338.9,3338.8,9.39e-06]
[1736964413152,7.5475,3338.9,3337.9,0.185]
[1736964413153,2.99575,3338.1,3337.9,0.185]
[1736964413491,5.995,3338.9,3337.9,0.55]
[1736964413492,2.99582,3338.0,3337.9,0.55]
[1736964413639,2.99589,3337.9,3337.8,0.185]
[1736964414445,2.99589,3337.9,3337.8,0.735]
[1736964414976,2.99575,3338.1,3337.9,0.55]
[1736964415191,2.9958,3338.0,3337.9,0.55]
[1736964415690,2.9958,3338.0,3337.8,0.185]
[1736964415892,2.99557,3338.3,3337.8,0.185]
[1736964416095,2.99589,3337.9,3337.8,0.185]
[1736964416691,2.99575,3338.1,3337.8,0.185]
[1736964417089,2.99556,3338.3,3337.8,0.185]
[1736964417290,2.99534,3338.6,3337.9,2.1275]
[1736964417590,3.0,3338.8,3337.9,2.1275]
[1736964417792,2.99513,3338.8,3338.3,0.55]
[1736964418806,3.0,3339.1,3338.5,0.55]
[1736964418807,2.99526,3338.6,3338.5,0.55]
[1736964419005,4.54776,3338.6,3338.5,0.55]
[1736964419515,2.99535,3338.5,3338.4,35.185]
[1736964419660,2.99535,3338.5,3338.4,35.735]
[1736964419866,5.99535,3338.5,3338.4,35.185]
[1736964420607,5.99535,3338.5,3338.4,35.23500832]
[1736964420810,5.99535,3338.5,3338.4,0.05000832]
[1736964421264,2.99568,3338.2,3337.9,35.55]
[1736964421463,5.99535,3338.5,3337.9,35.55]
[1736964421696,2.99579,3338.1,3338.0,0.60040893]
[1736964423067,3.0,3338.5,3338.0,0.60040893]
[1736964423312,2.99562,3338.2,3338.1,0.55]
[1736964423471,2.99571,3338.1,3338.0,0.05040893]
[1736964423666,2.9958,3338.0,3337.9,35.55]
[1736964424211,7.5483,3338.0,3337.9,35.0]
[1736964424886,5.99589,3337.9,3337.8,0.735]
[1736964425712,2.99553,3338.4,3338.0,0.55]
[1736964426014,2.99517,3338.7,3338.0,0.78867]
[1736964426015,2.99521,3338.7,3338.0,0.78867]
[1736964426314,1.631,3339.0,3338.0,0.78867]
[1736964426635,2.9952,3338.7,3338.0,0.78867]
[1736964427416,1.631,3339.0,3338.2,0.55]
[1736964427715,2.99519,3338.7,3338.2,0.55]
[1736964428821,2.99527,3338.6,3338.2,0.55]
[1736964429471,4.62595,3339.0,3338.2,0.55]
[1736964429472,2.99516,3338.8,3338.2,0.55]
[1736964431818,1.631,3339.0,3338.4,0.55]
[1736964432028,5.73590274,3338.9,3338.4,0.55]
[1736964432224,2.99535,3338.5,3338.1,1.6517]
[1736964432384,2.99562,3338.2,3337.8,1.8367]
[1736964432720,2.99578,3338.1,3337.8,1.8367]
[1736964433109,2.99579,3338.1,3337.9,0.185]
[1736964433306,3.0,3338.2,3337.9,0.185]
[1736964433510,2.9958,3338.0,3337.9,0.185]
[1736964439765,3.0,3338.2,3337.5,0.55]
[1736964439968,2.99599,3337.8,3337.7,0.55]
[1736964443346,2.99599,3337.8,3337.6,0.185]
[1736964443347,2.99607,3337.7,3337.6,0.185]
[1736964445662,3.0,3337.9,3337.7,0.55]
[1736964445882,3.0,3338.2,3337.6,0.185]
[1736964446175,2.99587,3338.0,3337.7,0.55]
[1736964446375,3.0,3338.2,3337.7,0.60071309]
[1736964446560,3.0,3338.1,3337.7,0.60071309]
[1736964446760,3.0,3338.1,3337.6,0.185]
[1736964446761,2.99592,3337.9,3337.6,0.185]